Cogmind - Beta 14 *** ADVENTURER MODE // 2024.10.30 @ 18:11:53 Player: T216 Result: Destroyed by 8D-Z6F(R) with Subdweller Beam Cannon Performance ------------- Evolutions (0) 0 Regions Visited (3) 600 Robots Destroyed (51) 255 Value Destroyed (1202) 1202 Prototype IDs (14) 280 Alien Tech Used (0) 0 Bonus (-6) -6 TOTAL SCORE: 2331 Bonus ------- Friendly Fire -6 Cogmind --------- Core Integrity 0/250 Matter 295/300 Energy 111/125 System Corruption 0% Temperature Cool (15) Movement Rolling (105) Location -10/Subcaves Parts ------- > --- POWER (1) -------- Light Ion Engine > --- PROPULSION (2) --- Compact Wheel Subdweller Monowheel > --- UTILITY (2) ------ Large Storage Unit Sensor Array > --- WEAPON (2) ------- Subdweller Beam Cannon Battle Cannon > --- INVENTORY (15) --- Deuterium Engine Aluminum Leg Aluminum Leg Compact Wheel Compact Matter Pod (150) Experimental Sensor Array Signal Interpreter Improved Terrain Scanner Beam Cannon Battle Rifle Barrage Gun Battle Cannon Rocket Launcher Ripper Peak State ------------ > --- POWER ------------ Light Ion Engine > --- PROPULSION ------- Compact Wheel Compact Wheel > --- UTILITY ---------- Large Storage Unit Experimental Sensor Array > --- WEAPON ----------- Assault Rifle Assault Rifle > --- INVENTORY -------- Light Ion Engine Aluminum Leg Aluminum Leg Sensor Array Signal Interpreter Improved Terrain Scanner Beam Cannon Assault Rifle Assault Rifle Grenade Launcher Mining Laser [Rating: 16] Favorites ----------- Power Light Ion Engine Engine Light Ion Engine Propulsion Compact Wheel Leg Aluminum Leg Wheel Compact Wheel Utility Sensor Array Device Sensor Array Storage Large Storage Unit Weapon Assault Rifle Energy Gun Medium Laser Energy Cannon Subdweller Beam Cannon Ballistic Gun Assault Rifle Ballistic Cannon Battle Cannon Launcher Rocket Launcher Special Weapon Mining Laser Slashing Weapon Ripper Build | -11 -10 -10 -10 ------- Run | Yrd Mat Min Sub Slots Evolved . | . . . . Power . | . . . . Propulsion . | . . . . Utility . | . . . . Weapon . | . . . . Parts Attached 70 | 9 8 19 34 Power 4 | 1 . 1 2 Engine 4 | 1 . 1 2 Core . | . . . . Reactor . | . . . . Propulsion 26 | 2 2 7 15 Treads . | . . . . Leg 8 | . . 2 6 Wheel 18 | 2 2 5 9 Hover . | . . . . Flight . | . . . . Utility 12 | 4 1 5 2 Device 9 | 3 . 4 2 Storage 3 | 1 1 1 . Processor . | . . . . Hackware . | . . . . Protection . | . . . . Artifact . | . . . . Weapon 28 | 2 5 6 15 Energy Gun 2 | 1 1 . . Energy Cannon 1 | . . . 1 Ballistic Gun 13 | 1 3 3 6 Ballistic Cannon 1 | . . . 1 Launcher 6 | . 1 2 3 Special Weapon 2 | . . 1 1 Impact Weapon . | . . . . Slashing Weapon 3 | . . . 3 Piercing Weapon . | . . . . Special Melee Weapon . | . . . . Unidentified Prototypes 1 | . . 1 . Parts Lost 3 | . 1 . 2 Power 1 | . . . 1 Propulsion 2 | . 1 . 1 Utility . | . . . . Weapon . | . . . . Highest Loss Streak 1 | . 1 . 1 To Critical Strikes . | . . . . Average Slot Usage (%) 99 | . 99 99 99 Engine 13 | . 14 14 13 Leg 6 | . . 1 9 Wheel 21 | . 27 26 18 Device 13 | . 14 13 14 Storage 14 | . 14 14 14 Energy Gun 1 | . 9 . . Energy Cannon 5 | . . . 8 Ballistic Gun 14 | . 17 26 10 Ballistic Cannon 4 | . . . 6 Peak Build Rating 16 | 9 10 16 14 Average Rating 10 | 4 9 8 12 On Entrance 7 | . 9 10 10 Naked Turns . | . . . . Heaviest Build 35 | 12 18 29 35 Greatest Support 40 | 26 32 32 40 Greatest Overweight (x) 1 | . . . 1 Average Overweight (x) . | . . . . Largest Inventory Capacity 15 | 8 10 15 15 Average Capacity 13 | 7 8 13 15 Most Carried 15 | 8 10 15 15 Average Carried 12 | 5 8 12 14 Final Capacity 15 | 8 10 15 15 Final Carried 15 | 7 10 15 14 Class Distribution -------------------- 87% | Mutant 12% | Derelict-Mutant Dominant Class ---------------- Mutant | -10/Materials Mutant | -10/Mines Mutant | -10/Subcaves Resources | -11 -10 -10 -10 ----------- Run | Yrd Mat Min Sub Matter Collected 1599 | 303 177 428 691 Remotely . | . . . . Salvage Created 1445 | 222 400 355 468 Parts 92 | 12 39 8 33 Haulers Intercepted 2 | . 2 . . Recyclers Shooed 1 | . . 1 . Parts Field Recycled . | . . . . Retrieved Matter . | . . . . Parts Self-Destructed 10 | . . . 10 Prevented . | . . . . Kills | -11 -10 -10 -10 ------- Run | Yrd Mat Min Sub Combat Hostiles Destroyed 36 | . 9 9 18 Guns 12 | . 4 5 3 Cannons 7 | . . . 7 AOE 17 | . 5 4 8 Classes Destroyed 9 | 2 5 . 2 Worker 1 | . 1 . . Tunneler 6 | 5 1 . . Hauler 2 | . 2 . . Recycler 3 | 1 . 2 . Watcher 3 | . 3 . . Swarmer 12 | . 3 3 6 Grunt 13 | . 6 6 1 Sentry 1 | . . . 1 Subdweller 10 | . . . 10 Best Kill Streak 5 | 3 4 3 5 Combat Bots Only 5 | . 4 3 5 Max Kills in Single Turn 3 | 1 3 2 3 Gunslinging 1 | . . 1 . Exploded 3 | . 3 2 2 Melee . | . . . . Uniques/NPCs Destroyed . | . . . . Combat | -11 -10 -10 -10 -------- Run | Yrd Mat Min Sub Hostile Shots Fired 114 | . 22 49 43 Missed 30 | . 7 9 14 Damage Taken 973 | . 195 337 441 Core 263 | . 62 105 96 Absorbed by Shields . | . . . . Ignored by Resistances 283 | . 58 101 124 Core Remaining (%) 100 | 100 . . . Volleys Fired 146 | 13 30 47 56 Largest 2 | 2 2 2 2 Hottest 120 | 70 70 100 120 Shots Fired 235 | 26 55 65 89 Gun 144 | 26 50 36 32 Cannon 44 | . . . 44 Launcher 23 | . 5 8 10 Special 24 | . . 21 3 Kinetic 122 | 13 29 36 44 Thermal 90 | 13 21 21 35 Explosive 23 | . 5 8 10 Electromagnetic . | . . . . Robot Hit Streak 40 | 17 19 27 40 Robot Miss Streak 4 | 1 4 1 1 Penetration Max . | . . . . Secondary Targets 1 | . . 1 . Max Gunslinging Chain 1 | . . 1 . Shots Hit Robots 142 | 20 36 37 49 Core Hits 84 | 9 24 20 31 Critical Kills . | . . . . Critical Parts Destroyed 1 | . . 1 . Critical Strikes 6 | 3 2 1 . Burn 5 | 3 2 . . Destroy 1 | . . 1 . Melee Attacks 16 | . . . 16 Impact . | . . . . Slashing 16 | . . . 16 Piercing . | . . . . Sneak Attacks . | . . . . Combat Hostiles . | . . . . Follow-up Attacks . | . . . . Damage Inflicted 3549 | 227 947 1012 1363 Guns 1289 | 227 378 369 315 Cannons 528 | . . . 528 Explosions 1732 | . 569 643 520 Melee . | . . . . Ramming . | . . . . Kinetic 1082 | 66 192 369 455 Thermal 735 | 161 186 . 388 Explosive 1732 | . 569 643 520 Electromagnetic . | . . . . Impact . | . . . . Slashing . | . . . . Piercing . | . . . . Highest Corruption . | . . . . Average Corruption . | . . . . Corruption Purged . | . . . . Corruption Blocked . | . . . . Overload Shots . | . . . . Overflow Damage 77 | . 77 . . Projectiles . | . . . . Explosions 77 | . 77 . . Melee . | . . . . Knockbacks 2 | . . . 2 Impact . | . . . . Kinetic 2 | . . . 2 Secondary . | . . . . Self-Inflicted Damage 82 | . 50 12 20 Shots 3 | . 1 1 1 Rammed . | . . . . Targets Rammed . | . . . . Kicked . | . . . . Crushed . | . . . . Highest Temperature 180 | 40 114 180 24 Average Temperature 46 | 16 39 61 15 Received Heat Transfer 378 | . 93 162 123 Siege Activations . | . . . . Robots Corrupted . | . . . . Combat Hostiles . | . . . . Parts Fried . | . . . . Impact Corruptions . | . . . . Robots Melted . | . . . . Combat Hostiles . | . . . . Parts Melted 4 | 2 1 . 1 Heat Transferred 1924 | 703 703 . 518 Parts Sabotaged . | . . . . Parts Stolen . | . . . . Parts Stripped . | . . . . Power Chain Reactions . | . . . . Alert | -11 -10 -10 -10 ------- Run | Yrd Mat Min Sub Peak Influence 345 | 30 345 199 . Initial 59 | . 16 59 . Average 118 | 11 178 102 . Maximum Alert Level 1 | . 1 . . Low Security (%) 92 | 100 79 100 . Level 1 7 | . 20 . . Level 2 . | . . . . Level 3 . | . . . . Level 4 . | . . . . Level 5 . | . . . . High Security . | . . . . Max Security . | . . . . Squads Dispatched 3 | . 1 2 . Investigation 2 | . 1 1 . Extermination . | . . . . Reinforcement . | . . . . Assault 1 | . . 1 . Garrison . | . . . . Intercept . | . . . . Searches Triggered . | . . . . Construction Impeded . | . . . . Haulers Reinforced . | . . . . Active Scanning Responses . | . . . . Cargo Convoy Interrupts . | . . . . Stealth | -11 -10 -10 -10 --------- Run | Yrd Mat Min Sub Distress Signals 1 | . 1 . . Communications Jammed . | . . . . Distress Signals . | . . . . Times Spotted 46 | . 13 10 23 Peak Tracking Total 5 | . 4 3 5 Tactical Retreats 3 | . . . 3 Traps | -11 -10 -10 -10 ------- Run | Yrd Mat Min Sub Traps Triggered . | . . . . Indirectly . | . . . . Trap Hack Attempts . | . . . . Triggered . | . . . . Disarmed . | . . . . Reprogrammed . | . . . . Reused . | . . . . Traps Extracted . | . . . . Installed . | . . . . Triggered . | . . . . Machines | -11 -10 -10 -10 ---------- Run | Yrd Mat Min Sub Machines Disabled 3 | . 3 . . Max in Single Turn 1 | . 1 . . Machines Repaired . | . . . . Machines Dismantled . | . . . . Machines Sabotaged . | . . . . Overloaded Fab Kills . | . . . . Hacking | -11 -10 -10 -10 --------- Run | Yrd Mat Min Sub Machines Accessed 9 | . 7 1 1 Terminals 7 | . 7 . . Fabricators . | . . . . Repair Stations . | . . . . Recycling Units . | . . . . Scanalyzers . | . . . . Garrison Access . | . . . . Total Hacks 27 | . 17 1 9 Successful 18 | . 8 1 9 Failed 9 | . 9 . . Catastrophic 1 | . 1 . . Database Lockouts . | . . . . Manual 10 | . 10 . . Terminals 17 | . 17 . . Fabricators . | . . . . Repair Stations . | . . . . Recycling Units . | . . . . Scanalyzers . | . . . . Garrison Access . | . . . . Terminal Hacks 18 | . 8 1 9 Record 8 | . . . 8 Robot Analysis 2 | . 2 . . Prototype ID Bank 1 | . 1 . . Open Door 1 | . . 1 . Alert Level 2 | . 2 . . Locate Traps 2 | . 2 . . Zone Layout 1 | . 1 . . Derelict Proto ID Bank 1 | . . . 1 Fabricator Hacks . | . . . . Repair Station Hacks . | . . . . Recycling Unit Hacks . | . . . . Scanalyzer . | . . . . Garrison Access Hacks . | . . . . Unauthorized Hacks . | . . . . Terminals . | . . . . Fabricators . | . . . . Repair Stations . | . . . . Recycling Units . | . . . . Scanalyzers . | . . . . Garrison Access . | . . . . Data Cores Recovered . | . . . . Used . | . . . . Hacking Detections 7 | . 7 . . Full Trace Events 2 | . 2 . . Feedback Events . | . . . . Feedback Blocked . | . . . . Robot Schematics Acquired . | . . . . Robots Built . | . . . . Authchips . | . . . . Time . | . . . . Total Robot Build Rating . | . . . . Part Schematics Acquired . | . . . . Parts Built . | . . . . Authchips . | . . . . Time . | . . . . Total Part Build Rating . | . . . . Parts Repaired . | . . . . Time . | . . . . Parts Recycled . | . . . . Recycled Matter . | . . . . Retrieved Matter . | . . . . Retrieved Components . | . . . . Parts Scanalyzed . | . . . . Part Schematics Acquired . | . . . . Parts Damaged . | . . . . Bothacking | -11 -10 -10 -10 ------------ Run | Yrd Mat Min Sub Used RIF Installer . | . . . . Robots Hacked . | . . . . Non-combat . | . . . . Combat . | . . . . Robot Hacks Applied . | . . . . Relay Couplers Released . | . . . . Fabnet Peak Effective % . | . . . . Robots Rewired . | . . . . Allies Hacked . | . . . . Hacks Repelled . | . . . . Allies | -11 -10 -10 -10 -------- Run | Yrd Mat Min Sub Total Allies 1 | . . 1 . Largest Group 1 | . . 1 1 Highest-Rated Group 31 | . . 31 31 Highest-Rated Ally 31 | . . 31 31 Total Orders . | . . . . Ally Attacks 9 | . . . 9 Total Damage 103 | . . . 103 Kills . | . . . . Allies Corrupted . | . . . . Allies Melted . | . . . . Intel | -11 -10 -10 -10 ------- Run | Yrd Mat Min Sub Robot Analysis Total 2 | . 2 . . Derelict Logs Recovered 5 | . . 2 3 Drone Launches . | . . . . Drone Recoveries . | . . . . Exploration | -11 -10 -10 -10 ------------- Run | Yrd Mat Min Sub Turns Passed 5052 | 278 745 962 3067 Spaces Moved 3621 | 245 632 641 2103 Core 76 | 76 . . . Treads . | . . . . Legs 308 | . . . 308 Wheels 3237 | 169 632 641 1795 Hover . | . . . . Flight . | . . . . Fastest Speed 50 | 50 90 100 100 Average Speed 107 | 77 98 100 115 Slowest Speed 190 | 90 100 100 190 Overloaded Moves . | . . . . Propulsion Burnouts . | . . . . Robots Hopped . | . . . . Cave-ins Triggered . | . . . . Exploration Rate (%) 73 | 7 94 98 93 Regions Visited 3 Branch Regions 2 Pre-discovered Areas 3 | . . 1 2 Known Exits Taken . | . . . . Unknown Exits Taken 3 | 1 1 1 . Scrap Searched 9 | . . 1 8 Spaces Dug 31 | . . 3 28 Terrain Destroyed 183 | . 54 49 80 Melee 3 | . . . 3 Projectile 10 | . . 5 5 AOE 170 | . 54 44 72 Terrain Rammed . | . . . . Walls Destroyed . | . . . . Machines Disabled . | . . . . Actions | -11 -10 -10 -10 --------- Run | Yrd Mat Min Sub Total 4477 | 306 703 855 2613 Wait 570 | 30 16 133 391 Move 3618 | 244 631 640 2103 Hop . | . . . . Pick Up 26 | 8 9 6 3 Fast Attach 15 | 8 1 1 5 Attach 7 | 1 1 3 2 Detach 5 | . . 3 2 Swap 48 | . 6 15 27 Drop 26 | 2 9 7 8 Fire 146 | 13 30 47 56 Melee 16 | . . . 16 Ram . | . . . . Kick . | . . . . Crush . | . . . . Escape Stasis . | . . . . Rewire . | . . . . Trap . | . . . . Miscellaneous . | . . . . Route ------- -11/Scrapyard -10/Materials (discovered 5 exits: [*Mat x3] / *Min x2) -10/Mines (discovered 3 exits: [*Mat x2] / *Sub) -10/Subcaves (discovered 2 exits: [*Mat x2]) History --------- Turn | Location | Event 7 | -11/Scrapyard | Discovered new exit (range 15) 279 | -11/Scrapyard | Entered Materials 305 | -10/Materials | Build established: Mutant 376 | -10/Materials | Discovered new exit (range 4) 416 | -10/Materials | Discovered new exit (range 6) 448 | -10/Materials | Discovered new exit (range 4) 656 | -10/Materials | Discovered new exit (range 5) 807 | -10/Materials | Discovered new exit (range 13) 1024 | -10/Materials | Entered Mines 1311 | -10/Mines | Discovered new exit (range 13) 1326 | -10/Mines | Found DCF Scrap (13 items) 1387 | -10/Mines | Learned Materials security intel 1405 | -10/Mines | Learned location of Zion (-7) 1436 | -10/Mines | Core integrity fell below 50% 1442 | -10/Mines | Found a damaged Exp. Sensor Array with a note attached 1445 | -10/Mines | Found Prototype Device 1445 | -10/Mines | Identified Exp. Sensor Array 1492 | -10/Mines | Met a Derelict testing a Signal Generator 1550 | -10/Mines | Discovered new exit (range 12) 1581 | -10/Mines | Received a Rocket Launcher from a helpful Derelict 1690 | -10/Mines | Met a Derelict shopkeep closing up shop 1971 | -10/Mines | Discovered new exit (range 5) 1986 | -10/Mines | Entered Subcaves 1986 | -10/Subcaves | Accompanied by 1 ally 2163 | -10/Subcaves | Learned Materials stockpile data 2311 | -10/Subcaves | Discovered new exit (range 12) 2348 | -10/Subcaves | Disturbed a concealed Subdweller 2363 | -10/Subcaves | Core integrity fell below 20% 2430 | -10/Subcaves | Shifting Twisted Machinery released Sub. Machine Gun 2579 | -10/Subcaves | Discovered new exit (range 15) 2604 | -10/Subcaves | Shifting Twisted Machinery released Shrapnel Trap 2606 | -10/Subcaves | Shifting Twisted Machinery released Sub. Shrapnel Launcher 2671 | -10/Subcaves | Met a Zionite searching for "candidates" 2737 | -10/Subcaves | Ambushed by Subdweller buried in earth 2801 | -10/Subcaves | A swath of the cavern ceiling suddenly collapsed 3132 | -10/Subcaves | A swath of the cavern ceiling suddenly collapsed 3401 | -10/Subcaves | Build established: Derelict-Mutant 3405 | -10/Subcaves | Shifting Twisted Machinery released Sub. Laser 3413 | -10/Subcaves | Shifting Twisted Machinery released Sub. Beam Cannon 3766 | -10/Subcaves | Learned Materials terminal intel 3817 | -10/Subcaves | Build established: Mutant 3932 | -10/Subcaves | Visited 4L-MR0's lab 5052 | -10/Subcaves | A Subdweller sparked back to life 5052 | -10/Subcaves | A Subdweller sparked back to life 5052 | -10/Subcaves | A Subdweller sparked back to life 5053 | -10/Subcaves | Destroyed by 8D-Z6F(R) with Subdweller Beam Cannon Last Messages --------------- Gun. 04400_ X7-1CH(R) destroyed. 04563_ 8P-JXS(R) destroyed. 04566_ HS-NHY(R) knocked back. 04569_ HS-NHY(R) destroyed. 04576_ Acquired 45 matter. 04646_ Sub. Monowheel shoots sparks and powers down. 04647_ Dropped Broken Sub. Monowheel. 04652_ Acquired 10 matter. 04731_ V6-A1P(R) destroyed. 04758_ Acquired 12 matter. 04760_ Acquired 8 matter. 05052_ V1-TZ6(R) knocked back. 05052_ SD-YK7(R) creaks and sparks as it begins to move. 05052_ 8D-Z6F(R) creaks and sparks as it begins to move. 05052_ V1-TZ6(R) creaks and sparks as it begins to move. Map ----- +----------------------------------------------------+ | ??????????????# # #?????????????????? | | ??????????????#" # ## #?????????????????? | | ??????????????#" # # #?####?????#######? | | ??????????????#"""" ## #### ##????# # #? | | ??????????????#""[ ## ###### ## | | ??????????????##" # # ^ | | ??????????????# " #### ^ | | ??????????????#"" # ## ^^ | | ??????????????##"" # #### # | | ??????????????# #"# ^ ##??## | | ??????????????## ####" ### #????# | | ??????????????# ##?#"""####?## ##???# | | ??????????????## #?# ##?????#######????## | | ???????????????# ######??????????????????## | | ???????????????### ##??????????????????????? | | ?????????????????## #??????????????????????? | | ???????????????#### #??????????????????????? | | ???????????????# #??????????????????????? | | ???????????????## ##?????????????????????? | | ????????????????# ##??????????????????????? | | ???????????????## #####<#?????????????????? | | ???????????????# # <